Workbook

Sheet SELECTION
F1: Увага: | G1: цей файл не є офіційним програмним забезпеченням Hilti
G2: розрахунки базуються на сертифікатах відповідності отриманих в Україні
D6: Выберите тип проходки | N6: Полезные ссылки
O9: Каталог продукції
O13: Технічна бібліотека
O17: Інженерний відділ

Sheet CP660 - каб. (hidden)
B1: Увага: цей файл не є офіційним програмним забезпеченням Hilti
V2: FALSE | W2: FALSE | AA2: Розрахунок витрат
D3: Розрахунок витрат протипожежної піни СР660, СР620 для кабельної проходки
C7: Ширина проходки "w": | D7: 200 | E7: мм
C9: Висота проходки "h" : | D9: 100 | E9: мм | I9: Витрати піни на 1 проходку "V": | J9: =S15/1000000 -> 1.8 | K9: л | Q9: Объем проходки : | S9: =IF(W2,(3.14*(D13/2)*(D13/2)*D11),(D7*D9*D11)) -> 2000000 | T9: мм3
C11: Товщина проходки "ta": | D11: 100 | E11: мм | I11: Загальний обсяг піни: | J11: =S15*D17/1000000 -> 180 | K11: л
C13: Діаметр проходки: | D13: 500 | E13: мм
C15: Заповнення проходки мережами : | D15: 10 | E15: % | Q15: Расход на одну проходку: | S15: =IF(V2,1.1*S9*(100-D15)/100,S9*(100-D15)/100) -> 1800000
C17: Кількість проходок : | D17: 100 | E17: шт. | Q17: Объем заполнения | S17: =S15*D17 -> 180000000 | T17: мм3
C19: Ціна 1 капсули СР660/620 (з ПДВ) : | D19: 200 | E19: грн. | Q19: Объем баллона химии : | S19: 2100000 | T19: мм3
F25: Загалом необхідно піни (капсул 325 мл) : | G25: =ROUNDUP(J11/S19*1000000,0) -> 86 | H25: шт. | T25: =S9*D15% -> 200000
F27: Загальна вартість рішення : | G27: =G25*D19 -> 17200 | H27: грн. с НДС
B29: * Розрахунок приблизний, фактичний розрахунок залежить від процессу монтажа.
B30: **У разі використання піни СР 620, отриманий результат потрібно помножити на 1,1
AB32: 3.1. Теоретична витрата (V, л) протипожежної піни Hilti CFS-F FX (CP 660) на одну проходку розраховується за формулою:
AB33: V = (w * h * tA – (S1…Sn) * tA)) * 10 - 6, (1)
Y34: Доп. условие | AB34: де w та h – відповідно ширина та висота заповнення проходки, мм;
Y35: S1≥ 0; | AB35: tA – товщина заповнення проходки, мм;
Y36: S2≥ 0; | AB36: S1…Sn - площі перерізу інженерних комунікацій, які проходять крізь проходку, мм2.
Y37: S2 для пучков кабелей≥ 0;
AB38: Якщо переріз проходки є круглої форми, розрахунок витрати піни вести за формулою
AB39: V = (0,785 * D2 * tA – (S1…Sn) * tA) * 10 - 6, (2)
B40: У разі виникнення питань, ласкаво просимо звязатись | AB40: де D – діаметр отвору, мм.
B41: з регіональним представником Hilti чи клієнтською службою за тел. 0443905566 | AB41: Кількість тубів піни визначається шляхом ділення теоретичної витрати в л на теоретичний вихід піни з одного туба, який складає приблизно 2,1 л за стандартних умов застосування: температура туба перед дозуванням 25°С, температура навколишнього середовища при дозуванні мінімум 10°С.
AB42: Теоретичний вихід піни з одного туба залежить від температури піни в тубі та температури виконання робіт та зворотньо пропорційний до них.
AB43: При розрахунку кількості тубів необхідно заздалегідь враховувати кліматичні умови монтажу піни.
B44: Зрізані (зайві) шматочки піни допускається вкладати в наступні проходки і заповнювати піною.
AB45: Важливо! При проектуванні складових проходки з заповненням піною CFS-F FX (CP 660) та розрахунку витрати піни необхідно дотримуватись обов’язкової умови – загальна максимальна площа перерізів інженерних комунікацій, які проходять крізь проходку не має складати більше 60% від загальної площі перерізу проходки.
AB47: 􀉌􀉟􀉨􀉪􀉟􀉬􀉢􀉱􀉧􀉢􀉣 􀉜􀉢􀉯􀉿􀉞 􀉩􀉿􀉧􀉢 􀉡 􀉨􀉞􀉧􀉨􀉝􀉨 􀉬􀉭􀉛􀉚 􀉡􀉚􀉥􀉟􀉠􀉢􀉬ь 􀉜􀉿􀉞 􀉬􀉟􀉦􀉩􀉟􀉪􀉚􀉬􀉭􀉪􀉢 􀉩􀉿􀉧􀉢 􀉜 􀉬􀉭􀉛􀉿 􀉬􀉚 􀉬􀉟􀉦􀉩􀉟􀉪􀉚􀉬􀉭􀉪􀉢
AB48: 􀉜􀉢􀉤􀉨􀉧􀉚􀉧􀉧􀉹 􀉪􀉨􀉛􀉿􀉬 􀉬􀉚 􀉡􀉜􀉨􀉪􀉨􀉬􀉧ь􀉨 􀉩􀉪􀉨􀉩􀉨􀉪􀉰􀉿􀉣􀉧􀉢􀉣 􀉞􀉨 􀉧􀉢􀉯.
AB49: 􀉉􀉪􀉢 􀉪􀉨􀉡􀉪􀉚􀉯􀉭􀉧􀉤􀉭 􀉤􀉿􀉥ь􀉤􀉨􀉫􀉬􀉿 􀉬􀉭􀉛􀉿􀉜 􀉧􀉟􀉨􀉛􀉯􀉿􀉞􀉧􀉨 􀉡􀉚􀉡􀉞􀉚􀉥􀉟􀉝􀉿􀉞ь 􀉜􀉪􀉚􀉯􀉨􀉜􀉭􀉜􀉚􀉬􀉢 􀉤􀉥􀉿􀉦􀉚􀉬􀉢􀉱􀉧􀉿 􀉭􀉦􀉨􀉜􀉢 􀉦􀉨􀉧􀉬􀉚􀉠􀉭 􀉩􀉿􀉧􀉢.

Sheet СР611А + кабелі (hidden)
B1: Увага: цей файл не є офіційним програмним забезпеченням Hilti
U2: FALSE | V2: FALSE | W2: FALSE
D3: Розрахунок витрат мастики СР611А для кабельної проходки | Z3: Розрахунок витрат
C7: Ширина проходки "w" : | D7: 100 | E7: мм | H7: Товщина проходки "te" : | I7: 100 | J7: мм
C9: Висота проходки "h" : | D9: 100 | E9: мм | H9: Товщина шару мастики "ta" : | I9: 50 | J9: мм | Q9: площадь проходки : | S9: =IF(W2,3.14*((D11/2)*(D11/2)),D7*D9) -> 10000 | T9: мм3
C11: Діаметр проходки : | D11: 170 | E11: мм
C13: Заповн. проходки мережами: | D13: 50 | E13: % | H13: Необхідний обсяг мастики : | I13: =ROUNDUP(S18/1000*D15,0) -> 250 | J13: мл | Q13: объем заполнения | S13: =IF(U2,S9*I9*2,S9*I9) -> 500000 | T13: мм3
C15: Кількість проходок : | D15: 1 | E15: шт. | H15: Загальна вартість мастики : | I15: =H23*D17*D15 -> 200 | J15: грн. з ПДВ | Q15: объем баллона химии : | S15: 310000 | T15: мм3
C17: Ціна 1 шт СР611А : | D17: 200 | E17: грн. з ПДВ
Q18: объем заполнения (+10% запас) (*2) | S18: =(IF(V2, S13*1.1, S13))*(1-D13/100) -> 250000
G23: Загалом необхідно мастики (капсул 310 мл) : | H23: =ROUNDUP(S18/S15*D15,0) -> 1 | I23: шт.
B25: * Розрахунок приблизний, фактичний розрахунок залежить від процессу монтажа.
F27: Товщина шару мастики у розрахунки прийнята 25 мм
F29: Витрати мінеральної вати | Z29: Объем мастики
F30: (довідково, втрати при різці не враховані):
F31: =S9*IF(U2,I7-2*I9,I7-I9)*(100-D13)/100*D15/10^9 -> 0.00025 | G31: куб.м. | Z31: 3.1. Теоретична витрата (V, мл) протипожежної мастики Hilti CFS-IS (CP 611A) на одну проходку розраховується за формулою:
Z32: V = (w * h * tA – (S1…Sn) * tA) * 10 - 3, (1)
Z33: де w та h – відповідно ширина та висота заповнення проходки, мм;
Z34: tA – товщина заповнення проходки, мм;
B35: У разі виникнення питань, ласкаво просимо звязатись | Z35: S1…Sn - площі перерізу інженерних комунікацій, які проходять крізь проходку, мм2.
B36: з регіональним представником Hilti чи клієнтською службою за тел. 0443905566
Z37: Якщо переріз проходки є круглої форми, розрахунок витрати мастики вести за формулою
Z38: V = (0,785 * D2 * tA – (S1…Sn) * tA) * 10 - 3, (2)
Z39: де D – діаметр отвору, мм.
Z40: При розрахунку кількості мастики враховувати кількість шарів нанесення (один чи два) для параметру tA в залежності від типу будівельної конструкції та можливе додаткове нанесення мастики згідно Типів ущільнення відповідно до Розділу 5 даного Регламенту.
Z41: Для розрахунку кількості тубів мастики необхідно розділити теоретичну витрату на 310 та прийняти найближче більше число.

Sheet Кабельные покрытия (hidden)
C1: Увага: цей файл не є офіційним програмним забезпеченням Hilti | V1: FALSE
E2: Расчет расхода кабельного покрытия СР 678/679А | M2: Вспомогательные ячейки:
N5: Площадь проходки: | O5: =IF(V1,(D6*0.0005)*1.1,D6*0.0005) -> 3
C6: Количество м² : | D6: 6000 | E6: м²
C9: Цена 1 ведра (с НДС) : | D9: 200 | E9: грн. с НДС | G9: Общее кол-во ведер : | H9: =O11 -> 195 | I9: шт
N11: Общее количество | O11: =ROUNDUP(O5/0.0154,0) -> 195
G14: Общая стоимость решения : | H14: =H9*D9 -> 39000 | I14: грн. с НДС
B25: При возникновении дополнительных вопросов свяжитесь пожалуйста с
B26: Вашим региональным представителем Hilti или клиентской службой по телефону 0443905566

Sheet СР606 герметик + труба (hidden)
B1: Увага: цей файл не є офіційним програмним забезпеченням Hilti | S1: h вручну | U1: 2 стор | V1: 0.1
S2: FALSE | T2: TRUE | U2: FALSE | V2: FALSE | Y2: Розрахунок витрат
E3: Розрахунок витрат герметика СР606 для трубних проходок у круглих отворах | O3: h= | P3: =IF(S2,J11,15) -> 15
O4: V= | P4: =0.00157*P3*(D7^2-D9^2) -> 294.375
O6: з обох сторін? | P6: =IF(U2,P4*2,P4) -> 294.375
C7: Діаметр отвору "D": | D7: 150 | E7: мм | G7: Перевірка:
H8: Розмір кільцевого зазору: | I8: =(D7-D9)/2 -> 25 | J8: мм | O8: Запас 10%? | P8: =IF(V2,P6*1.1,P6) -> 294.375
C9: Діаметр труби "dc" : | D9: 100 | E9: мм | H9: цей розмір | I9: =IF(N13,"недопустимий","допустимий") -> допустимий
C11: Кількість отворів : | D11: 4 | E11: шт. | J11: 15 | K11: мм | M11: Зазор завеликий | N11: =IF(35.5<I8,TRUE,FALSE) -> FALSE | O11: недопустимий
G12: (товщина шару за замовчуванням: 15 мм) | M12: Зазор замалий | N12: =IF(10.5>I8,TRUE,FALSE) -> FALSE
M13: Зазор недопустимий | N13: =OR(N11,N12) -> FALSE
C18: Ціна за шт. (з ПДВ) : | D18: 200 | E18: грн. | H18: Загальна вартість герметику : | I18: =D18*H24 -> 800 | J18: грн.с НДС
H20: Загальний обсяг герметику: | I20: =P8*D11 -> 1177.5 | J20: мл
Y21: 1. Розрахунок витрат матеріалів.
Y22: 3.1. Теоретична витрата (V, мл) протипожежного акрилового герметику Hilti CFS-S ACR (CP 606) на одну проходку з двостороннім нанесенням розраховується за формулою:
Y23: V = 0,00157 * h * (D2 – d2), (1)
G24: Загалом необхідно герметику (капсул 310 мл): | H24: =ROUNDUP(I20/310,0) -> 4 | I24: шт. | Y24: де h – глибина заповнення прошарку, мм;
Y25: D – діаметр отвору проходки в будівельній конструкції, мм;
B26: * Розрахунок приблизний, фактичні витрати залежать від процесу монтажу. | Y26: d – зовнішній діаметр трубопроводу в проходці з або без врахування товщини ізоляції, мм.
Y27: Для розрахунку кількості тубів герметику необхідно розділити теоретичну витрату на 310 та прийняти найближче більше число.
B37: У разі виникнення питань, ласкаво просимо звязатись
B38: з регіональним представником Hilti чи клієнтською службою за тел. 0443905566

Sheet CFS-W P -пластикові труби (hidden)
B1: Увага: цей файл не є офіційним програмним забезпеченням Hilti | R1: CP606 рахувати? | S1: Гориз? | T1: Половина товщини?
R2: FALSE | S2: FALSE | T2: FALSE | W2: Теоретична витрата (L, м.п.) протипожежної стрічки Hilti CFS-W P на один трубопровід розраховується за формулою:
E3: Розрахунок витрат манжет стрічкового типу CFS-W P при облаштуванні проходок пластикових труб у круглому отворі | W3: L = ((3,14 * (dc + 2* tDЕ + 4) + ΣKN + 20)) * 10 - 3,
P4: Вспомогательные ячейки: | W4: де dc – зовнішній діаметр трубопроводу, мм;
P5: Загальні витрати на одну сторону: | Q5: =3.14*((D10*I7+(2*4+4*(I7-1))/2*I7))+20 -> 189.56 | R5: мм | W5: tDE – товщина ізоляції трубопроводу, мм;
P6: З урахуванням гориз чи веритикальна: | Q6: =IF(S2,Q5*2,Q5) -> 189.56 | R6: мм | W6: 4 – товщина першого шару стрічки, мм;
C7: Діаметр отвору "D" : | D7: 130 | E7: мм | H7: Кількість шарів стрічки : | I7: 1 | J7: шари | P7: З урахуванням половини товщини: | Q7: =IF(T2,Q6/2,Q6) -> 189.56 | R7: мм | W7: 20 – фінішний нахлест останнього шару стрічки, мм,
W8: KN = 3,14 * (dc + 2* tDЕ + 8…16) – доданок (-ки), який (-і) визначається кількістю шарів стрічки; числове значення приймається 8 – для 2-го шару, 12 – для 3-го шару, 16 – для 4-го шару стрічки
W9: Також витрата стрічки може прийматися за таблицями нижче для технічних рішень згідно до Сертифікату відповідності.
C10: Діаметр труби "dc + 2*tDE" : | D10: 50 | E10: мм | W10: Якщо трубопровід є неізольованим, tDЕ = 0.
C11: (Якщо є, то з ізоляцією) | W11: Підчас розрахунку витрати обов’язково враховувати кількість шарів стрічки згідно до п. 4.8. шляхом використання необхідної кількості доданків у формулах (1) та (2).
C12: Кількість отворів: | D12: 100 | E12: шт. | F12: Розхід стрічки на 1 місце "L" : | I12: =Q7/1000 -> 0.18956 | J12: м.п. | W12: Для розрахунку кількості упаковок стрічки необхідно розділити теоретичну витрату стрічки на 10 та прийняти найближче більше число.
P13: Діаметр труби після намотки стрічки: | Q13: =D10+4*I7 -> 54 | R13: мм
C14: Ціна за 10 м манжети (з ПДВ) : | D14: 1000 | E14: грн. з ПДВ | H14: Загальна кількість ленти СР646: | I14: =I12*D12 -> 18.956 | J14: м.п. | P14: Обсяг герметику на дві сторони: | Q14: =0.00157*10*(D7^2-Q13^2) -> 219.5488 | R14: мл
H15: або | I15: =ROUNDUP(I14/10,0) -> 2 | J15: упак
C16: Ціна за капсулу (310 мл)
C17: герметика (з ПДВ) : | D17: 200 | E17: грн. з ПДВ | H17: Загальна кільк. гермет. СР 606: | I17: =IF(R2,Q14*D12,0) -> 0 | J17: мл
H18: або | I18: =ROUNDUP(I17/310,0) -> 0 | J18: капсул
J19: (Увага: герметік СР606 наноситься з обох боків проходки
J20: незалежно від конфігурації горизонтальна/вертикальна)
E24: Загальна вартість рішення : | H24: =I15*D14+I18*D17 -> 2000 | I24: грн
B25: * Розрахунок приблизний. Фактичні витрати залежать від процесу монтажа.
B38: У разі виникнення питань, ласкаво просимо звязатись
B39: з регіональним представником Hilti чи клієнтською службою за тел. 0443905566

Sheet СР611А мастика труба (hidden)
B1: Увага: цей файл не є офіційним програмним забезпеченням Hilti | T1: прям | U1: 2 стор | V1: 0.1
T2: FALSE | U2: TRUE | V2: FALSE | Y2: Розрахунок витрат
E3: Розрахунок витрат мастики СР611А для проходок труб у круглому чи прямокутному отворі | O3: круглая проходка :
N4: V= | O4: =0.785*(D7^2-D9^2)*J9*10^-3 -> 78.5 | P4: ml
O6: прямоугольная проходка :
C7: Діаметр отвору "D" : | D7: 70 | E7: мм | I7: Товщина проходки "tE" : | J7: 200 | K7: мм | N7: V= | O7: =(D12*D14-0.785*D9^2)*J9*10^-3 -> 232.3375 | P7: ml
C9: Діаметр труби "dc" : | D9: 30 | E9: мм | I9: Товщина шару мастики "tA": | J9: 25 | K9: мм
O10: прям/кругл
H11: Перевірка: | N11: V= | O11: =IF(T2,O7,O4) -> 78.5 | P11: ml
C12: Ширина проходки "w" : | D12: 100 | E12: мм | H12: Розмір кільцевого зазору: | I12: =(D7-D9)/2 -> 20 | J12: мм
H13: цей розмір | I13: =IF(N22,"недопустимий","допустимий") -> допустимий | O13: 2 стор?
C14: Висота проходки "h" : | D14: 100 | E14: мм | N14: V= | O14: =IF(U2,O11*2,O11) -> 157 | P14: ml
O15: 10% - ?
N16: V= | O16: =IF(V2,O14*1.1,O14) -> 157 | P16: ml
C17: Кількість отворів : | D17: 2000 | E17: шт.
H18: Витрати мінеральної вати : | I18: =O30*D17*10^-6 -> 0.942 | J18: куб.м. | N18: недопустимий | Y18: 3.1. Теоретична витрата (V, мл) протипожежної мастики Hilti CFS-IS (CP 611A) на одну проходку розраховується за формулою:
G19: (довідково, втрати при різці не враховані):
C20: Ціна за шт. : | D20: 200 | E20: грн.з ПДВ | H20: Загальна кільк. мастики : | I20: =O16*D17 -> 314000 | J20: мл | M20: Зазор завеликий | N20: =IF(25<I12,TRUE,FALSE) -> FALSE | Y20: V = (w * h * tA – (S1…Sn) * tA) * 10 - 3, (1)
M21: Зазор замалий | N21: =IF(5>I12,TRUE,FALSE) -> FALSE | Y21: де w та h – відповідно ширина та висота заповнення проходки, мм;
H22: Загальна вартість мастики : | I22: =D20*I24 -> 202600 | J22: грн. з ПДВ | M22: Зазор недопустимий | N22: =OR(N20,N21) -> FALSE | Y22: tA – товщина заповнення проходки, мм;
Y23: S1…Sn - площі перерізу інженерних комунікацій, які проходять крізь проходку, мм2.
H24: Загалом необхідно мастики (капсул 310 мл) : | I24: =ROUNDUP((I20/310),0) -> 1013 | J24: шт. | M24: Обсяг круглої проходки | O24: =3.14*D7^2/4*J7*10^-3 -> 769.3 | P24: ml
M25: Обсяг прямокутної проходки | O25: =D12*D14*J7*10^-3 -> 2000 | P25: ml | Y25: Якщо переріз проходки є круглої форми, розрахунок витрати мастики вести за формулою
B26: * Розрахунок приблизний. Фактичні витрати залежать від процесу монтажу. | M26: Обсяг труби | O26: =3.14*D9^2/4*J7*10^-3 -> 141.3 | P26: ml | Y26: V = (0,785 * D2 * tA – (S1…Sn) * tA) * 10 - 3, (2)
M27: Витрати мінвати у кругл. | O27: =O24-O26-O14 -> 471 | Y27: де D – діаметр отвору, мм.
M28: Витрати мінвати у прямокут. | O28: =O25-O26-O14 -> 1701.7 | Y28: При розрахунку кількості мастики враховувати кількість шарів нанесення (один чи два) для параметру tA в залежності від типу будівельної конструкції та можливе додаткове нанесення мастики згідно Типів ущільнення відповідно до Розділу 5 даного Регламенту.
Y29: Для розрахунку кількості тубів мастики необхідно розділити теоретичну витрату на 310 та прийняти найближче більше число.
M30: Витрати мінеральної вати | O30: =IF(T2,O28,O27) -> 471 | P30: ml
B38: У разі виникнення питань, ласкаво просимо звязатись
B39: з регіональним представником Hilti чи клієнтською службою за тел. 0443905566

Sheet СР660-воздуховод (hidden)
U1: TRUE | V1: FALSE
F2: Расчет расхода противопожарной пены СР660 для заделки узла пересечения воздуховодом ограждающих конструкций | Y2: Расчет расхода
O4: Вспомогательные ячейки :
C6: Ширина отверстия : | D6: 300 | E6: мм | O6: Площадь отверстия: | P6: =D6*D8 -> 90000
C8: Высота отверстия : | D8: 300 | E8: мм | F8: Расход пены 1 проходку: | I8: =P14/1000 -> 19800 | J8: мл | O8: Площадь воздуховода прямоугольного сечения: | P8: =D12*D14 -> 0
C10: Толщина проходки : | D10: 200 | E10: мм | F10: Объем пены на выходе : | I10: =P14*D18/1000 -> 39600 | J10: мл | O10: Площадь водуховода круглого сечения: | P10: =3.14*POWER(D16,2)/4 -> 49062.5
C12: Ширина воздуховода : | D12: 0 | E12: мм | O12: Объем проходки: | P12: =IF(V1,(P6-P10)*D10,(P6-P8)*D10) -> 18000000
C14: Высота воздуховода : | D14: 0 | E14: мм | O14: Объем проходки + 10%: | P14: =IF(U1,P12*1.1,P12) -> 19800000
O15: Объем баллона химии : | P15: 2100000
C16: Диаметр воздуховода : | D16: 250 | E16: мм | P16: 2100000
C18: Количество проходок : | D18: 2 | E18: шт.
C20: Цена 1 капсулы СР660 (с НДС) : | D20: 200 | E20: грн.
Y21: Объем пены
Y23: V1=(S1-S2)*ta
Y24: где:
Y25: ta- толщина нанесение пены (зависит от применения);
Y26: S1- площадь проходки;
Y27: S2- площадь коммуникаций, проходящих через проходку;
E29: Всего необходимо пены (капсул 325 мл) : | F29: =ROUNDUP(I10/2100,0) -> 19 | G29: шт.
E31: Общая стоимость решения : | F31: =F29*D20 -> 3800 | G31: грн.
B33: * Расчет приблизительный. Фактический расход зависит от процесса монтажа.
B35: При возникновении дополнительных вопросов свяжитесь пожалуйста с
B36: Вашим региональным представителем Hilti или клиентской службой по телефону 88007005252
B39: Обратите внимание ! Срезанные куски пены , которые оказались лишними ,
B40: можно вкладывать в следующие отверстия и заполнять новой пеной .

Sheet СР670+СР606 вент. проходка (hidden)
B1: Увага: цей файл не є офіційним програмним забезпеченням Hilti | S1: +10%
S2: FALSE | X2: Розрахунок витрат:
D3: Розрахунок витрат покриття СР670 та герметіка СР606 для проходки повітропропроводу | L3: Витрати СР670
L5: На поверхні проходки
G6: Заповнення | L6: =2*D7*D9*(100-I7)/100*I11*10^-3 -> 960 | M6: ml
C7: Ширина проходки "w" : | D7: 1200 | E7: мм | H7: проходки повітропроводами : | I7: 80 | J7: % | L7: На нахльост на будівельні конструкції:
L8: =2*2*(((D9+40)*20+(D7*20)))*I11*10^-3 -> 259.2 | M8: ml
C9: Висота проходки "h" : | D9: 2000 | E9: мм | H9: Загальний периметр повітропроводів : | I9: 12 | J9: мм | L9: На прокрас мереж:
C10: Глибина заповнення | L10: =2*I9*I11*D13*10^-3 -> 4.8 | M10: ml
C11: мінватою "tE" : | D11: 100 | E11: мм | H11: Товщина мокрого шару CP670: | I11: 1 | J11: мм | L11: Загалом витрати на одну проходку з обох боків:
L12: =L6+L8+L10 -> 1224 | M12: ml
C13: Довжина нанесення | D13: 200 | E13: мм | H13: Товщина мокрого шару CP606: | I13: 1 | J13: мм | L13: Загалом витрати на одну проходку +10%:
C14: (покриття CP670 на повітропровід) | L14: =L12*1.1 -> 1346.4 | M14: ml
C15: Кількість проходок : | D15: 50 | E15: шт.
L16: Витрати СР606
C17: Ціна 1 ведра СР670 : | D17: 3500 | E17: грн. з ПДВ | H17: Загальні витрати покриття СР670 : | I17: =IF(S2,L14*D15*10^-3,L12*D15*10^-3) -> 61.2 | J17: л
L18: На периметр пліт:
C19: Ціна 1 шт СР606 : | D19: 220 | E19: грн. з ПДВ | H19: Загальні витрати герметика СР606 : | I19: =IF(S2,L25*D15,L23*D15) -> 32060 | J19: мл | L19: =2*(D9+D7)*D11*10^-3 -> 640 | M19: ml
L20: На ущільнення мереж:
B21: Ціна мин. ваты за м³ : | D21: 3500 | E21: грн. з ПДВ | H21: Загальні витрати мін. вати : | I21: =IF(S2,L30*D15,L28*D15) -> 2.4 | J21: м³ | L21: =I9*D11*I13*10^-3 -> 1.2 | M21: ml
L22: Загалом витрати СР606:
L23: =L19+L21 -> 641.2 | M23: ml
L24: Загалом витрати СР606 +10%:
G25: Загалом необхідно покриття СР670 (відер 4л): | H25: =ROUNDUP((I17/4),0) -> 16 | I25: шт. | L25: =L23*1.1 -> 705.32 | M25: ml | V25: Доп. условия | X25: 1. Розрахунок витрат матеріалів.
G26: Загалом необхідно герметику СР606 (капсул 310 мл): | H26: =ROUNDUP(I19/310,0) -> 104 | I26: шт. | X26: 3.1. Теоретична витрата (V, л) протипожежного покриття Hilti CFS-CT (CP 670) розраховується за формулою:
L27: Витрати мінвати: | V27: S1=0 | X27: V = (2 * (h * w - S1…Sn) * f1 + 2 * (2 * ((h + 0,2) * 0,1) * (w * 0,1)) + (P1…Pn) * f1 * f2)) * 10 - 6 (1)
G28: Загальна вартість рішення стоимость решения : | H28: =D17*H25+D19*H26+D21*I21 -> 87280 | I28: грн. с НДС | L28: =D7*D9*D11*(100-I7)/100*10^-9 -> 0.048 | M28: м куб | V28: S2=0 | X28: де h та w – габаритні розміри проходки, мм;
L29: з урахуванням +10% | V29: S3=0 | X29: S1…Sn – площі перерізу комунікацій, які проходять крізь проходку, мм2;
B30: * Розрахунок приблизний. Фактичні витрати залежать від умов монтажу. | L30: =L28*1.1 -> 0.0528 | M30: м куб | V30: S4=0 | X30: f1 = 1,3 – стандартна товщина мокрого шару покриття, мм;
V31: S5=50 | X31: P1…Pn – периметри комунікацій, які проходять крізь проходку, мм;
V32: S6=3 | X32: f2 = 200 – довжина нанесення покриття від площини проходки, мм.
V33: S7=3 | X33: Для розрахунку витрати покриття для отримання іншої товщини шару сухого покриття або іншої ширини нанесення (наприклад, згідно до п. 5.1.2) необхідно відповідне коригування коефіцієнтів f1 та f2.
V34: S8=0 | X34: Для розрахунку кількості ємностей покриття необхідно розділити теоретичну витрату на 4 та прийняти найближче більше число.
V35: S9=17
V36: S10=17 | X36: 3.2. Теоретична витрата (V, мл) протипожежного акрилового герметику Hilti CFS-S ACR (CP 606) розраховується за формулою:
V37: S11=0 | X37: V = (2 * (h * Te) * f + 2 * (w * Te) * f + (P1…Pn) * Te * f) * 10 - 3 (2)
V38: S12=30 | X38: де h та w – габаритні розміри проходки, мм;
V39: S13=0 | X39: f = 1 – стандартна товщина шару герметику, мм;
V40: S14=40 | X40: P1…Pn – периметри комунікацій, які проходять крізь проходку, мм.
X41: Te – товщина проходки, мм.
X42: Для розрахунку кількості тубів герметику необхідно розділити теоретичну витрату на 310 та прийняти найближче більше число.
B44: У разі виникнення питань, ласкаво просимо звязатись | X44: 3.3. Теоретична витрата (V, м3) негорючої мінеральної вати розраховується за формулою:
B45: з регіональним представником Hilti чи клієнтською службою за тел. 0443905566 | X45: V = h * w * Te - (P1…Pn) * Te (3)
X46: де h та w – габаритні розміри проходки, м;
X47: P1…Pn – периметри комунікацій, які проходять крізь проходку, м;
X48: Te – товщина проходки, м.
X50: 3.2. Теоретична витрата (L, м.п.) протипожежної стрічки Hilti CFS-W P на один трубопровід розраховується за формулою:
X51: L = ((3,14 * (dc + 2* tDЕ + 4) + ΣKN + 20)) * 10 - 3,
X52: де dc – зовнішній діаметр трубопроводу, мм;
X53: tDE – товщина ізоляції трубопроводу, мм;
X54: 4 – товщина першого шару стрічки, мм;
X55: 20 – фінішний нахлест останнього шару стрічки, мм,
X56: KN = 3,14 * (dc + 2* tDЕ + 8…16) – доданок (-ки), який (-і) визначається кількістю шарів стрічки; числове значення приймається 8 – для 2-го шару, 12 – для 3-го шару, 16 – для 4-го шару стрічки
X57: Також витрата стрічки може прийматися за таблицями нижче для технічних рішень згідно до Сертифікату відповідності.
X58: Якщо трубопровід є неізольованим, tDЕ = 0.
X59: Підчас розрахунку витрати обов’язково враховувати кількість шарів стрічки згідно до п. 4.8. шляхом використання необхідної кількості доданків у формулах (1) та (2).
D625: Общий оборот
... 1 more rows

Sheet СР601S (СР606) герметик + шов (hidden)
B1: Увага: цей файл не є офіційним програмним забезпеченням Hilti | U1: FALSE | V1: FALSE
E2: Розрахунок витрат герметику СР601S або СР606 для облаштування швів | O2: Вспомогательные ячейки : | U2: 2 стор | V2: 0.1 | X2: Розрахунок витрат
C6: Ширина шва "w" : | D6: 100 | E6: мм | H6: Стиснення мінвати : | I6: 40 | J6: % | L6: Глубина шва : | M6: =D20 -> 20 | N6: мм
C8: Довжина шва "L" : | D8: 1000 | E8: мм | L8: з однієї сторони
C10: Товщина конструкції "tE" : | D10: 10000 | E10: мм | H10: Загальні витрати герметику : | I10: =ROUNDUP(M16,0)*D12 -> 2000 | J10: мл | L10: V = | M10: =(M6*D6*D8)*10^- 3 -> 2000 | N10: ml
C12: Кількість швів : | D12: 1 | E12: шт. | H12: Загальні витрати мін. вати : | I12: =M23*10^-6*D12 -> 1.663333333 | J12: м³ | L12: з двох сторін?
L13: V = | M13: =IF(U1,M10*2,M10) -> 2000 | N13: ml
A14: Вартість герметику 1шт. | D14: 280 | E14: грн. с НДС
L15: +10% ?
A16: Вартість мін. вати за м³. | D16: 550 | E16: грн. с НДС | L16: V = | M16: =IF(V1,M13*1.1,M13) -> 2000 | N16: ml
L18: обєм 1 шва | M18: =D6*D8*D10*10^-3 -> 1000000 | N18: ml | X18: 1. Розрахунок витрат матеріалів.
X19: 3.1. Теоретична витрата (V, мл) протипожежного акрилового герметику Hilti CFS-S ACR (CP 606) на один шов (щілину) з двостороннім нанесенням розраховується за формулою:
C20: Товщина герметику "tA" : | D20: 20 | E20: мм | L20: обєм мінвати після стискання | X20: V = (2 * tA * W * L) * 10 - 3, (1)
B21: (Типова глибина шва складає 6-10 мм в залежності від застосування) | M21: =M18-M16 -> 998000 | N21: ml | X21: де tA – глибина заповнення шву (щілини), мм;
L22: обєм мінвати до стискання | X22: W – ширина шву (щілини), мм;
M23: =M21/(100-I6)*100 -> 1663333.333 | N23: ml | X23: L – довжина шву (щілини), мм.
X24: За необхідності при розрахунку кількості герметику можна застосовувати коефіцієнт запасу.
X25: Для розрахунку кількості тубів герметику необхідно розділити теоретичну витрату на 310 та прийняти найближче більше число.
X26: Кількість негорючої мінеральної вати для заповнення швів (щілин) приймати згідно їх геометричних розмірів, глибини заповнення та коефіцієнту компресії (стискання) згідно Розділу 5 даного Регламенту.
H28: Загалом необхідно герметику (капсул 310 мл): | I28: =ROUNDUP(I10/310,0) -> 7 | J28: шт.
H30: Загальна вартість рішення : | I30: =I28*D14+I12*D16 -> 2874.833333 | J30: грн. з ПДВ
A32: * Розрахунок приблизний. Реальні витрати залежать від умов монтажу.
B43: У разі виникнення питань, ласкаво просимо звязатись
B44: з регіональним представником Hilti чи клієнтською службою за тел. 0443905566

Sheet Герметик-спрей CFS-SP WB (hidden)
B1: Увага: цей файл не є офіційним програмним забезпеченням Hilti | V1: 10% ?
U2: FALSE | V2: FALSE
D3: Розрахунок витрат герметику спрея СFS - SP WB для захисту шву | X3: 1. Розрахунок витрат матеріалів.
X4: 3.1. Теоретична витрата (V, л) протипожежного герметик-спрею Hilti CFS-SP WB на один шов (щілину) з одностороннім нанесенням розраховується за формулою або орієнтовно приймається за таблицею нижче:
N5: V = (tA * (W + 30) * L) * 10 - 6, (1) | X5: V = (tA * (W + 30) * L) * 10 - 6, (1)
G6: Товщина мокрого | N6: V= | O6: =(I7*(D7+30)*D9*1000)*10^-6 -> 1 | P6: liters | X6: де tA ~ 3 - 5 мм – товщина мокрого шару герметику для утворення сухого шару 2 мм, мм;
C7: Ширина шву "w" : | D7: 70 | E7: мм | H7: шару герметика "tA" : | I7: 10 | J7: мм | X7: W + 30 – ширина шву (щілини) з двома нахлестами по 15 мм мінімум, мм;
N8: з запасом 10% ? | X8: L – довжина шву (щілини), мм.
C9: Довжина шву "L" : | D9: 1 | E9: м | H9: Загальний обсяг герметик-спрея : | I9: =O9 -> 1 | J9: л | N9: V= | O9: =IF(V2,O6*1.1,O6) -> 1 | P9: liters | X9: За необхідності при розрахунку кількості герметику можна застосовувати коефіцієнт запасу.
I10: =ROUNDUP(I9/18.9,0) -> 1 | J10: ведер | X10: Для розрахунку кількості ємностей герметику необхідно розділити теоретичну витрату на 18,9 та прийняти найближче більше число.
C11: Товщина конструкції : | D11: 100 | E11: мм | X11: Кількість негорючої мінеральної вати для заповнення швів (щілин) приймати згідно їх геометричних розмірів, глибини заповнення та коефіцієнту компресії (стискання) згідно Розділу 5 даного Регламенту.
C12: (наприклад, перекриття) | H12: Стиснення мінвати : | I12: 50 | J12: % | N12: Обєм мінвати після стиснення | X12: Ширина ущільнення, мм | Y12: Довжина ущільнення в м.п. на 1 ємність 19 л
C13: Вартість 1 відра (з ПДВ) : | D13: 11000 | E13: грн. з ПДВ | H13: Загальні витрати мін. ваты : | I13: =O16 -> 0.014 | J13: м³ | O13: =D7*D9*D11*10^-6 -> 0.007 | P13: куб. м. | X13: 6 | Y13: 150
X14: 10 | Y14: 130
A15: Ціна мін. вати за м³ (з ПДВ) : | D15: 350 | E15: грн. з ПДВ | M15: обєм мінвати до стискання | X15: 20 | Y15: 110
O16: =O13/(100-I12)*100 -> 0.014 | P16: куб. м. | X16: 50 | Y16: 65
X17: 100 | Y17: 40
H18: Загальна вартість рішення : | I18: =D13*I10+D15*I13 -> 11004.9 | J18: грн. | X18: 150 | Y18: 30
B19: * Розрахунок приблизний. Фактичні витрати залежать від умов монтажу. | X19: 200 | Y19: 20
B20: * Розрахунок виконання з урахуванням 15 мм нахлесту на будівельні конструкці з обох боків шву.
B21: *** Товщину мокрого шару герметику призначити виходячі з вимог до межі вогнестійкості

Sheet Герметик-спрей CFS-SP SIL (hidden)
B1: Увага: цей файл не є офіційним програмним забезпеченням Hilti
U2: FALSE | V2: TRUE
E3: Расчет расходов герметик спрея СFS - SP SIL для защиты шва | O3: Вспомогательные ячейки :
O6: Объём шва м3 : | P6: =(D7+25)/1000*D9*0.002 -> 0.015 | Q6: обьем шва (+10%): | S6: =IF(V2=TRUE, P6*1.1, P6) -> 0.0165
C7: Ширина шва : | D7: 50 | E7: мм | O7: обьем герметика в л : | P7: =S6*1000 -> 16.5
D8: 1
C9: Длина шва : | D9: 100 | E9: м | H9: Общий объем герметик-спрея : | I9: =ROUNDUP(P7,1) -> 16.5 | J9: л | O9: объём ведра : | P9: 19
C11: Глубина шва : | D11: 200 | E11: мм
C13: Цена 1 ведра (с НДС) : | D13: 11000 | E13: грн. c НДС | H13: Общий расход мин. ваты : | I13: =P22/1000000000 -> 1.3 | J13: м³ | O13: объем всех швов : | P13: =P7*#REF! -> 
A15: Цена мин. ваты за м³(с НДС) : | D15: 350 | E15: грн. c НДС | K15: =25.5/1.28 -> 19.921875
H18: Общая стоимость решения : | I18: =I9*(D13/20)+I13*D15 -> 9530 | J18: грн.
B19: * Расчет приблизительный. Фактический расход зависит от процесса монтажа. | O19: Необходимо герметика (туб): | P19: =ROUNDUP(P7/P9,0) -> 1
B20: ** Расчет указаны с учетом нахлеста по 15мм на каждую сторону шва
B21: *** Расчет приведен для толщины влажного слоя герметик спрея 3мм ,
B22: образующий сухой слой толщиной 1,5 мм. | O22: Объем мин ваты : | P22: =D7*D9*1000*D11*1.3 -> 1300000000 | Q22: =D7*D11*(D9/1000) -> 1000
P25: =IF((D7/2)<7,6,ROUNDUP(D7/2,0)) -> 25

Sheet СP611А універсальна проходка (hidden)
B1: Увага: цей файл не є офіційним програмним забезпеченням Hilti | N1: прямокутна | O1: з обох боків | P1: 0.1
N2: FALSE | O2: TRUE | P2: FALSE | T2: Расчет расхода
E3: Розрахунок витрат мастики СР611А при облаштуванні універсальної проходки
M5: Витрати на одну прямокутну проходку з одного боку:
M6: V= | N6: =D12*D14*(100-I12)/100*I7*10^-3 -> 321.75 | O6: ml
C7: Діаметр отвору "D" : | D7: 20 | E7: мм | H7: Товщина шару мастіки "tA" : | I7: 26 | J7: мм
H8: (типова товщина шару мастики складає 25 мм,
H9: див. Регламент) | M9: Витрати на одну круглу проходку з одного боку:
H11: Заповнення проходки | M11: V= | N11: =3.14*D7^2/4*(100-I12)/100*I7*10^-3 -> 4.4902 | O11: ml
C12: Ширина проходки "w" : | D12: 150 | E12: мм | H12: мережами : | I12: 45 | J12: %
C14: Висота проходки "h" : | D14: 150 | E14: мм | M14: Витрати на одну проходку з одного боку
M15: V= | N15: =IF(N2,N6,N11) -> 4.4902 | O15: ml
M16: Витрати з обох боків:
C17: Кількість отворів : | D17: 33 | E17: шт. | M17: V= | N17: =IF(O2,N15*2,N15) -> 8.9804 | O17: ml
M18: Витрати з урахуванням +10%: | T18: Объем герметика
C19: Ціна за шт. : | D19: 200 | E19: грн.с НДС | M19: V= | N19: =IF(P2,N17*1.1,N17) -> 8.9804 | O19: ml
H20: Загальна кількість мастики "V" : | I20: =D17*N19 -> 296.3532 | J20: мл | T20: 3.1. Теоретична витрата (V, мл) протипожежної мастики Hilti CFS-IS (CP 611A) на одну проходку розраховується за формулою:
T21: V = (w * h * tA – (S1…Sn) * tA) * 10 - 3, (1)
H22: Загальна вартість мастики : | I22: =I24*D19 -> 200 | J22: грн. з ПДВ | T22: де w та h – відповідно ширина та висота заповнення проходки, мм;
T23: tA – товщина заповнення проходки, мм;
H24: Загалом необхідно мастики (капсул 310 мл) : | I24: =ROUNDUP((I20/310),0) -> 1 | J24: шт. | T24: S1…Sn - площі перерізу інженерних комунікацій, які проходять крізь проходку, мм2.
B26: * Розрахунок приблизний. Фактичні витрати залежать від умов монтажу. | T26: Якщо переріз проходки є круглої форми, розрахунок витрати мастики вести за формулою
T27: V = (0,785 * D2 * tA – (S1…Sn) * tA) * 10 - 3, (2)
T28: де D – діаметр отвору, мм.
B38: У разі виникнення питань, ласкаво просимо звязатись
B39: з регіональним представником Hilti чи клієнтською службою за тел. 0443905566

Sheet CP660 - унів. (hidden)
B1: Увага: цей файл не є офіційним програмним забезпеченням Hilti
V2: FALSE | W2: FALSE | AA2: Розрахунок витрат
D3: Розрахунок витрат протипожежної піни СР660, СР620 для змішаної проходки
C7: Ширина проходки "w" : | D7: 100 | E7: мм
C9: Висота проходки "h" : | D9: 600 | E9: мм | I9: Витрати піни на 1 проходку "V" : | J9: =S15/1000000 -> 5.4 | K9: л | Q9: Объем проходки : | S9: =IF(W2,(3.14*(D13/2)*(D13/2)*D11),(D7*D9*D11)) -> 6000000 | T9: мм3
C11: Товщина проходки "tA" : | D11: 100 | E11: мм | I11: Загальний обсяг піни: | J11: =S15*D17/1000000 -> 540 | K11: л
C13: Діаметр проходки "D" : | D13: 600 | E13: мм
C15: Заповнення проходки мережами : | D15: 10 | E15: % | Q15: Расход на одну проходку: | S15: =IF(V2,1.1*S9*(100-D15)/100,S9*(100-D15)/100) -> 5400000
C17: Кількість проходок : | D17: 100 | E17: шт. | Q17: Объем заполнения | S17: =S15*D17 -> 540000000 | T17: мм3
C19: Ціна 1 капсули СР660/620 (з ПДВ) : | D19: 200 | E19: грн. | Q19: Объем баллона химии : | S19: 2100000 | T19: мм3
F25: Загалом необхідно піни (капсул 325 мл) : | G25: =ROUNDUP(J11/S19*1000000,0) -> 258 | H25: шт. | T25: =S9*D15% -> 600000
F27: Загальна вартість рішення : | G27: =G25*D19 -> 51600 | H27: грн. с НДС
B29: * Розрахунок приблизний, фактичний розрахунок залежить від процессу монтажа.
B30: **У разі використання піни СР 620, отриманий результат потрібно помножити на 1,1
AB32: 3.1. Теоретична витрата (V, л) протипожежної піни Hilti CFS-F FX (CP 660) на одну проходку розраховується за формулою:
AB33: V = (w * h * tA – (S1…Sn) * tA)) * 10 - 6, (1)
Y34: Доп. условие | AB34: де w та h – відповідно ширина та висота заповнення проходки, мм;
Y35: S1≥ 0; | AB35: tA – товщина заповнення проходки, мм;
Y36: S2≥ 0; | AB36: S1…Sn - площі перерізу інженерних комунікацій, які проходять крізь проходку, мм2.
Y37: S2 для пучков кабелей≥ 0;
AB38: Якщо переріз проходки є круглої форми, розрахунок витрати піни вести за формулою
AB39: V = (0,785 * D2 * tA – (S1…Sn) * tA) * 10 - 6, (2)
B40: У разі виникнення питань, ласкаво просимо звязатись | AB40: де D – діаметр отвору, мм.
B41: з регіональним представником Hilti чи клієнтською службою за тел. 0443905566 | AB41: Кількість тубів піни визначається шляхом ділення теоретичної витрати в л на теоретичний вихід піни з одного туба, який складає приблизно 2,1 л за стандартних умов застосування: температура туба перед дозуванням 25°С, температура навколишнього середовища при дозуванні мінімум 10°С.
AB42: Теоретичний вихід піни з одного туба залежить від температури піни в тубі та температури виконання робіт та зворотньо пропорційний до них.
AB43: При розрахунку кількості тубів необхідно заздалегідь враховувати кліматичні умови монтажу піни.
B44: Зрізані (зайві) шматочки піни допускається вкладати в наступні проходки і заповнювати піною.
AB45: Важливо! При проектуванні складових проходки з заповненням піною CFS-F FX (CP 660) та розрахунку витрати піни необхідно дотримуватись обов’язкової умови – загальна максимальна площа перерізів інженерних комунікацій, які проходять крізь проходку не має складати більше 60% від загальної площі перерізу проходки.
AB47: 􀉌􀉟􀉨􀉪􀉟􀉬􀉢􀉱􀉧􀉢􀉣 􀉜􀉢􀉯􀉿􀉞 􀉩􀉿􀉧􀉢 􀉡 􀉨􀉞􀉧􀉨􀉝􀉨 􀉬􀉭􀉛􀉚 􀉡􀉚􀉥􀉟􀉠􀉢􀉬ь 􀉜􀉿􀉞 􀉬􀉟􀉦􀉩􀉟􀉪􀉚􀉬􀉭􀉪􀉢 􀉩􀉿􀉧􀉢 􀉜 􀉬􀉭􀉛􀉿 􀉬􀉚 􀉬􀉟􀉦􀉩􀉟􀉪􀉚􀉬􀉭􀉪􀉢
AB48: 􀉜􀉢􀉤􀉨􀉧􀉚􀉧􀉧􀉹 􀉪􀉨􀉛􀉿􀉬 􀉬􀉚 􀉡􀉜􀉨􀉪􀉨􀉬􀉧ь􀉨 􀉩􀉪􀉨􀉩􀉨􀉪􀉰􀉿􀉣􀉧􀉢􀉣 􀉞􀉨 􀉧􀉢􀉯.
AB49: 􀉉􀉪􀉢 􀉪􀉨􀉡􀉪􀉚􀉯􀉭􀉧􀉤􀉭 􀉤􀉿􀉥ь􀉤􀉨􀉫􀉬􀉿 􀉬􀉭􀉛􀉿􀉜 􀉧􀉟􀉨􀉛􀉯􀉿􀉞􀉧􀉨 􀉡􀉚􀉡􀉞􀉚􀉥􀉟􀉝􀉿􀉞ь 􀉜􀉪􀉚􀉯􀉨􀉜􀉭􀉜􀉚􀉬􀉢 􀉤􀉥􀉿􀉦􀉚􀉬􀉢􀉱􀉧􀉿 􀉭􀉦􀉨􀉜􀉢 􀉦􀉨􀉧􀉬􀉚􀉠􀉭 􀉩􀉿􀉧􀉢.

Sheet СР670+СР606 универсал.проходка (hidden)
B1: Увага: цей файл не є офіційним програмним забезпеченням Hilti | S1: +10%
S2: FALSE | X2: Розрахунок витрат:
D3: Розрахунок витрат покриття СР670 та герметіка СР606 для універсальної проходки | L3: Витрати СР670
L5: На поверхні проходки
L6: =2*D7*D9*(100-I7)/100*I11*10^-3 -> 1980 | M6: ml
C7: Ширина проходки "w" : | D7: 1000 | E7: мм | H7: Заповнення проходки мережами : | I7: 1 | J7: % | L7: На нахльост на будівельні конструкції:
L8: =2*2*(((D9+40)*20+(D7*20)))*I11*10^-3 -> 163.2 | M8: ml
C9: Висота проходки "h" : | D9: 1000 | E9: мм | H9: Загальний периметр мереж : | I9: 12 | J9: мм | L9: На прокрас мереж:
B10: Загальна глибина | L10: =2*I9*I11*D13*10^-3 -> 4.8 | M10: ml
C11: заповнення мінватою "A1" : | D11: 100 | E11: мм | H11: Товщина мокрого шару CP670: | I11: 1 | J11: мм | L11: Загалом витрати на одну проходку з обох боків:
L12: =L6+L8+L10 -> 2148 | M12: ml
C13: Довжина нанесення на мережі "LAP" : | D13: 200 | E13: мм | H13: Товщина мокрого шару CP606: | I13: 1 | J13: мм | L13: Загалом витрати на одну проходку +10%:
C14: (покриття CP670, рахуючі від площини мінвати) | L14: =L12*1.1 -> 2362.8 | M14: ml
C15: Кількість проходок : | D15: 1 | E15: шт.
L16: Витрати СР606
C17: Ціна 1 ведра СР670 : | D17: 3500 | E17: грн. з ПДВ | H17: Загальні витрати покриття СР670 : | I17: =IF(S2,L14*D15*10^-3,L12*D15*10^-3) -> 2.148 | J17: л
L18: На периметр пліт:
C19: Ціна 1 шт СР606 : | D19: 220 | E19: грн. з ПДВ | H19: Загальні витрати герметика СР606 : | I19: =IF(S2,L25*D15,L23*D15) -> 401.2 | J19: мл | L19: =2*(D9+D7)*D11*10^-3 -> 400 | M19: ml
L20: На ущільнення мереж:
B21: Ціна мин. ваты за м³ : | D21: 3500 | E21: грн. з ПДВ | H21: Загальні витрати мін. вати : | I21: =IF(S2,L30*D15,L28*D15) -> 0.099 | J21: м³ | L21: =I9*D11*I13*10^-3 -> 1.2 | M21: ml
L22: Загалом витрати СР606:
L23: =L19+L21 -> 401.2 | M23: ml
L24: Загалом витрати СР606 +10%:
G25: Загалом необхідно покриття СР670 (відер 4л): | H25: =ROUNDUP((I17/4),0) -> 1 | I25: шт. | L25: =L23*1.1 -> 441.32 | M25: ml | V25: Доп. условия | X25: 1. Розрахунок витрат матеріалів.
G26: Загалом необхідно герметику СР606 (капсул 310 мл): | H26: =ROUNDUP(I19/310,0) -> 2 | I26: шт. | X26: 3.1. Теоретична витрата (V, л) протипожежного покриття Hilti CFS-CT (CP 670) розраховується за формулою:
L27: Витрати мінвати: | V27: S1=0 | X27: V = (2 * (h * w - S1…Sn) * f1 + 2 * (2 * ((h + 0,2) * 0,1) * (w * 0,1)) + (P1…Pn) * f1 * f2)) * 10 - 6 (1)
G28: Загальна вартість рішення стоимость решения : | H28: =D17*H25+D19*H26+D21*I21 -> 4286.5 | I28: грн. с НДС | L28: =D7*D9*D11*(100-I7)/100*10^-9 -> 0.099 | M28: м куб | V28: S2=0 | X28: де h та w – габаритні розміри проходки, мм;
L29: з урахуванням +10% | V29: S3=0 | X29: S1…Sn – площі перерізу комунікацій, які проходять крізь проходку, мм2;
B30: * Розрахунок приблизний. Фактичні витрати залежать від умов монтажу. | L30: =L28*1.1 -> 0.1089 | M30: м куб | V30: S4=0 | X30: f1 = 1,3 – стандартна товщина мокрого шару покриття, мм;
V31: S5=50 | X31: P1…Pn – периметри комунікацій, які проходять крізь проходку, мм;
V32: S6=3 | X32: f2 = 200 – довжина нанесення покриття від площини проходки, мм.
V33: S7=3 | X33: Для розрахунку витрати покриття для отримання іншої товщини шару сухого покриття або іншої ширини нанесення (наприклад, згідно до п. 5.1.2) необхідно відповідне коригування коефіцієнтів f1 та f2.
V34: S8=0 | X34: Для розрахунку кількості ємностей покриття необхідно розділити теоретичну витрату на 4 та прийняти найближче більше число.
V35: S9=17
V36: S10=17 | X36: 3.2. Теоретична витрата (V, мл) протипожежного акрилового герметику Hilti CFS-S ACR (CP 606) розраховується за формулою:
V37: S11=0 | X37: V = (2 * (h * Te) * f + 2 * (w * Te) * f + (P1…Pn) * Te * f) * 10 - 3 (2)
V38: S12=30 | X38: де h та w – габаритні розміри проходки, мм;
V39: S13=0 | X39: f = 1 – стандартна товщина шару герметику, мм;
V40: S14=40 | X40: P1…Pn – периметри комунікацій, які проходять крізь проходку, мм.
X41: Te – товщина проходки, мм.
X42: Для розрахунку кількості тубів герметику необхідно розділити теоретичну витрату на 310 та прийняти найближче більше число.
B44: У разі виникнення питань, ласкаво просимо звязатись | X44: 3.3. Теоретична витрата (V, м3) негорючої мінеральної вати розраховується за формулою:
B45: з регіональним представником Hilti чи клієнтською службою за тел. 0443905566 | X45: V = h * w * Te - (P1…Pn) * Te (3)
X46: де h та w – габаритні розміри проходки, м;
X47: P1…Pn – периметри комунікацій, які проходять крізь проходку, м;
X48: Te – товщина проходки, м.
X50: 3.2. Теоретична витрата (L, м.п.) протипожежної стрічки Hilti CFS-W P на один трубопровід розраховується за формулою:
X51: L = ((3,14 * (dc + 2* tDЕ + 4) + ΣKN + 20)) * 10 - 3,
X52: де dc – зовнішній діаметр трубопроводу, мм;
X53: tDE – товщина ізоляції трубопроводу, мм;
X54: 4 – товщина першого шару стрічки, мм;
X55: 20 – фінішний нахлест останнього шару стрічки, мм,
X56: KN = 3,14 * (dc + 2* tDЕ + 8…16) – доданок (-ки), який (-і) визначається кількістю шарів стрічки; числове значення приймається 8 – для 2-го шару, 12 – для 3-го шару, 16 – для 4-го шару стрічки
X57: Також витрата стрічки може прийматися за таблицями нижче для технічних рішень згідно до Сертифікату відповідності.
X58: Якщо трубопровід є неізольованим, tDЕ = 0.
X59: Підчас розрахунку витрати обов’язково враховувати кількість шарів стрічки згідно до п. 4.8. шляхом використання необхідної кількості доданків у формулах (1) та (2).
D625: Общий оборот
... 1 more rows

Sheet СР 651N (hidden)
B3: Увага: цей файл не є офіційним програмним забезпеченням Hilti | S3: FALSE | T3: FALSE | U3: TRUE
D4: Розрахунок витрат протипожежних подушок СР 651N
C10: Ширина проходки "w" : | D10: 500 | E10: мм | H10: Кількість подушок : | I10: =S20*D16 -> 278 | J10: шт.
C12: Висота проходки "h" : | D12: 500 | E12: мм | Q12: Объем проходки : | S12: =D10*D12*D14 -> 50000000 | T12: мм3
C14: Товщина проходки : | D14: 200 | E14: мм | Q14: Расход на одну проходку L: | S14: =ROUNDUP(S12/(300*170*30),0) -> 33
S15: =ROUNDUP(S13/(300*40*30),0) -> 0
C16: Кількість проходок : | D16: 2 | E16: шт. | Q16: Расход на одну проходку M: | S16: =ROUNDUP(S12/(300*80*30),0) -> 70
S17: 0
C18: Ціна 1 подушки : | D18: 200 | E18: грн. с НДС | Q18: Расход на одну проходку S: | S18: =ROUNDUP(S12/(300*40*30),0) -> 139
F20: УВАГА! ПЕРЕКОНАЙТЕСЬ В НАЯВНОСТІ ДІЮЧОГО СЕРТИФІКАТУ. | Q20: кол-во подушек на 1 проходку | S20: =IF(S3,S14,IF(T3,S16,IF(U3,S18,0))) -> 139
F22: ПРОДУКТ В ПРОЦЕСІ СЕРТИФІКАЦІЇ
D27: Загальна вартість рішення : | F27: =I10*D16*D18 -> 111200 | G27: грн. з ПДВ
B34: У разі виникнення питань, ласкаво просимо звязатись
B35: з регіональним представником Hilti чи клієнтською службою за тел. 0443905566

Sheet CFS-BL (hidden)
B4: Увага: цей файл не є офіційним програмним забезпеченням Hilti
D5: Розрахунок витрат протипожежних блоков CFS-BL
G10: Розрахунок витрат
C11: Ширина проходки "w" : | D11: 500 | E11: мм | H11: на одну проходку : | I11: =ROUNDUP(S15,0) -> 39 | J11: шт.
C13: Висота проходки "h" : | D13: 500 | E13: мм | Q13: Объем проходки : | S13: =D11*D13*D15 -> 50000000 | T13: мм3
C15: Товщина проходки : | D15: 200 | Q15: Расход на одну проходку: | S15: =S13/(130*50*200) -> 38.46153846
C17: Кількість проходок : | D17: 3
C19: Ціна 1 блока (з ПДВ) : | D19: 200 | E19: грн. | F19: УВАГА! ПЕРЕКОНАЙТЕСЬ В НАЯВНОСТІ ДІЮЧОГО СЕРТИФІКАТУ
F20: ПРОДУКТ В ПРОЦЕСІ СЕРТИФІКАЦІЇ
F22: Загалом необхідно блоків : | G22: =I11*D17 -> 117 | I22: шт.
F24: Загальна вартість рішення: | G24: =G22*D19 -> 23400 | H24: грн. с НДС
B35: У разі виникнення питань, ласкаво просимо звязатись
B36: з регіональним представником Hilti чи клієнтською службою за тел. 0443905566

Sheet СР636-универсальная проходка (hidden)
A1: Увага: цей файл не є офіційним програмним забезпеченням Hilti
V2: FALSE | Z2: Розрахунок витрат
F3: Розрахунок витрат протипожежного розчину СР 636 для універсальної проходки | M3: Вспомогательные ячейки:
N6: Площадь проходки: | O6: =D7*D9 -> 250000
C7: Ширина проходки "w" : | D7: 500 | E7: мм | N7: Объем заполнения + 10% : | O7: =IF(V2,(O6-O16)*D11*1.1,(O6-O16)*D11) -> 15000000
N8: Заполнений проходки: | O8: =(D13/100) -> 0.7
C9: Висота проходки "h" : | D9: 500 | E9: мм
C11: Товщина проходки "tA1" : | D11: 200 | E11: мм | F11: УВАГА! ПЕРЕКОНАЙТЕСЬ В НАЯВНОСТІ ДІЮЧОГО СЕРТИФІКАТУ
F12: ПРОДУКТ В ПРОЦЕСІ СЕРТИФІКАЦІЇ
C13: Заповнення проходки : | D13: 70 | E13: %
N14: Всего раствора мешков: | O14: =ROUNDUP((O7/22200000)*D15,0) -> 7
C15: Кількість проходок : | D15: 10 | E15: шт. | N15: Расчет матики:
N16: Площадь проходки заполненной кабелями: | O16: =(D13*O6)/100 -> 175000
C17: Ціна 1 мішка СР636 (з ПДВ) : | D17: 200 | E17: грн. з ПДВ | G17: Загальна вартість розчину : | H17: =D17*O14 -> 1400 | I17: грн. с НДС | N17: объем мастики: | O17: =SQRT(O16/3.14)*2*3.14*30*5*2 -> 444769.6033
N18: объем мастики+10%: | O18: =IF(V2,O17*D15*1.1,O17*D15) -> 4447696.033 | P18: мм3
C19: Ціна 1 капсули СР611 (з ПДВ) : | D19: 200 | E19: грн. з ПДВ | G19: Загальна вартість мастики : | H19: =G25*D19 -> 3000 | I19: грн. с НДС | O19: =O18/1000 -> 4447.696033
N20: Общее количество капсул 310мл: | O20: =ROUNDUP(O19/310,0) -> 15
Z22: Обсяг розчину:
B23: Загалом необхідно мішків (20 кг) : | G23: =O14 -> 7 | H23: шт.
Z24: V=(S1-S2)*te
B25: Загалом необхідно мастики (капсул 310 мл): | G25: =O20 -> 15 | H25: шт. | Z25: де
B26: * Розрахунок приблизний. Фактичні витрати залежать від процесу монтажу | Z26: te- товщина проходки;
Z27: S1- площина проходки;
Z28: S2- площа комунікацій, що проходять через проходку;
B39: У разі виникнення питань, ласкаво просимо звязатись
B40: з регіональним представником Hilti чи клієнтською службою за тел. 0443905566
